Workbook

Sheet B Tx MTTR Calc (hidden)
B2: Assumptions | I2: Power Transformer Failure Rates | J2: AGE | K2: 2019/20 | L2: 2020/21 | M2: 2021/22 | N2: 2022/23 | O2: 2023/24 | P2: 2024/25 | Q2: 2025/26 | R2: 2026/27 | S2: 2027/28 | T2: 2028/29 | U2: 2029/30 | V2: 2030/31
B3: Transformer Failure Rate = | C3: 0.02328786013 | D3: Use average failure rate (C3) | I3: 1 | J3: 2.5 | K3: 3.913118961e-05 | L3: 9.074926997e-05 | M3: 0.0001701 | N3: 0.0002809181197 | O3: 0.0004265367159 | P3: 0.000609994877 | Q3: 0.0008341042681 | R3: 0.001101493763 | S3: 0.001414641117 | T3: 0.001775896413 | U3: 0.0021875 | V3: 0.002651596581
B4: Number of transformers = | C4: 60 | D4: 51 Metro and 30 Country Transformers | I4: 2 | J4: 15 | K4: 0.003450652112 | L4: 0.004054833126 | M4: 0.004718406273 | N4: 0.0054432 | O4: 0.006230989674 | P4: 0.007083501959 | Q4: 0.008002418614 | R4: 0.008989379832 | S4: 0.01004598717 | T4: 0.01117380617 | U4: 0.01237436867 | V4: 0.01364917491
B5: Time to replace with spare trfr (months) = | C5: 1 | I5: 3 | J5: 27.5 | K5: 0.0157038003 | L5: 0.01717058846 | M5: 0.01871664784 | N5: 0.02034335733 | O5: 0.0220520726 | P5: 0.02384412729 | Q5: 0.02572083402 | R5: 0.02768348535 | S5: 0.0297333547 | T5: 0.03187169717 | U5: 0.03409975027 | V5: 0.0364187347
B6: Time to repair or procure trfr (months) = | C6: 12 | I6: 4 | J6: 37.5 | K6: 0.03409975027 | L6: 0.0364187347 | M6: 0.03882985495 | N6: 0.0413343 | O6: 0.04393324385 | P6: 0.04662784609 | Q6: 0.04941925244 | R6: 0.05230859518 | S6: 0.05529699369 | T6: 0.0583855548 | U6: 0.06157537327 | V6: 0.06486753214
I7: 5 | J7: 42.5 | K7: 0.04662784609 | L7: 0.04941925244 | M7: 0.05230859518 | N7: 0.05529699369 | O7: 0.0583855548 | P7: 0.06157537327 | Q7: 0.06486753214 | R7: 0.0682631031 | S7: 0.07176314685 | T7: 0.07536871343 | U7: 0.07908084254 | V7: 0.08290056381
B8: Two spare transformers calculation
B9: State | C9: 1st Spare | D9: 2nd Spare | E9: Percentage of Time
B10: No spare transformers available | C10: 0 | D10: 0 | E10: =1-SUM(E11:E13) -> 0.4088382856 | F10: =SUM(E10:E12) -> 0.7567823185 | G10: 0.15 | H10: =E10*12 -> 4.906059427 | J10: =G10*12 -> 1.8
B11: One spare transformer available | C11: 0 | D11: 1 | E11: =C4*(C3*((1-C3)^(C4-1)))/2 -> 0.1739720165 | G11: =1-G10 -> 0.85 | H11: =SUM(E11:E13)*1 -> 0.5911617144 | J11: =SUM(G11:G13)*1 -> 0.85
B12: One spare transformer available | C12: 1 | D12: 0 | E12: =E11 -> 0.1739720165 | F12: =SUM(E11:E12) -> 0.3479440329 | H12: =SUM(H10:H11) -> 5.497221141 | J12: =SUM(J10:J11) -> 2.65
B13: Both spare transformers available | C13: 1 | D13: 1 | E13: =(1-C3)^C4 -> 0.2432176815 | F13: =SUM(E11:E13) -> 0.5911617144
B15: N-1 Contingency
B16: MTTR N-1 = | C16: =E10*$C$6+(1-E10)*$C$5 -> 5.497221141 | D16: Months
B17: Factor = | C17: =C16/12 -> 0.4581017618 | D17: =C17*12 -> 5.497221141
B19: N-2 Contingency
B20: MTTR N-2 = | C20: =(E10+E11+E12)*$C$6+E13*$C$5 -> 9.324605503 | D20: Months | E20: =C20/12 -> 0.7770504586 | H20: 30 | I20: 1.816542138
B21: Factor = | C21: =(C20/12)*C17 -> 0.3559681841 | H21: 51 | I21: 2.958463107
H22: =SUM(H20:H21) -> 81 | I22: =(H20*I20+H21*I21)/H22 -> 2.535529415
B23: N-3 Contingency
B24: MTTR N-3 = | C24: =C6 -> 12 | D24: Months
B25: Factor = | C25: =(C24/12)*C21 -> 0.3559681841
B31: Power Transformer Failure Rates | C31: AGE | D31: 2020/21 | E31: 2021/22
B32: 1 | C32: 2.5 | D32: 3.913118961e-05 | E32: 9.074926997e-05
B33: 2 | C33: 15 | D33: 0.003450652112 | E33: 0.004054833126
B34: 3 | C34: 27.5 | D34: 0.0157038003 | E34: 0.01717058846
B35: 4 | C35: 37.5 | D35: 0.03409975027 | E35: 0.0364187347
B36: 5 | C36: 42.5 | D36: 0.04662784609 | E36: 0.04941925244

Sheet Cleaned up
B2: Metro B Transformer - MTTR Calculation | H2: Country B Transformer - MTTR Calculation
B4: Assumptions | H4: Assumptions
B5: Transformer Failure Rate | C5: =MEDIAN('Metro B Tx POFs'!K2:K61) -> 0.01920486194 | D5: Using median failure rate of metro B Tx fleet | H5: Transformer Failure Rate | I5: =MEDIAN('Country B & L Tx POFs'!K:K) -> 0.02474724888 | J5: Using median failure rate of country B Tx fleet
B6: Number of transformers | C6: =COUNT('Metro B Tx POFs'!K2:K61) -> 60 | H6: Number of transformers | I6: =COUNT('Country B & L Tx POFs'!K2:K103) -> 30
B7: Time to replace with spare transformer (% of the year) | C7: =1/12 -> 0.08333333333 | H7: Time to replace with spare transformer (% of the year) | I7: =1/12 -> 0.08333333333
B8: Time to repair or procure transformer (% of the year) | C8: 1 | H8: Time to repair or procure transformer (% of the year) | I8: 1
B11: Two spare transformers calculation | H11: Two spare transformers calculation
B12: State | C12: 1st Spare | D12: 2nd Spare | E12: Percentage of Time | F12: Comments | H12: State | I12: 1st Spare | J12: 2nd Spare | K12: Percentage of Time | L12: Comments
B13: No spare transformers available | C13: 0 | D13: 0 | E13: =1-SUM(E14:E16) -> 0.3205953824 | H13: No spare transformers available | I13: 0 | J13: 0 | K13: =1-SUM(K14:K16) -> 0.169502892
B14: One spare transformer available | C14: 0 | D14: 1 | E14: =C6*(C5*((1-C5)^(C6-1)))/2 -> 0.1835069002 | H14: One spare transformer available | I14: 0 | J14: 1 | K14: =I6*(I5*((1-I5)^(I6-1)))/2 -> 0.1794801914
B15: One spare transformer available | C15: 1 | D15: 0 | E15: =E14 -> 0.1835069002 | F15: Same as above | H15: One spare transformer available | I15: 1 | J15: 0 | K15: =K14 -> 0.1794801914 | L15: Same as above
B16: Both spare transformers available | C16: 1 | D16: 1 | E16: =(1-C5)^C6 -> 0.3123908173 | H16: Both spare transformers available | I16: 1 | J16: 1 | K16: =(1-I5)^I6 -> 0.4715367252
B19: N-1 Contingency | H19: N-1 Contingency
B20: MTTR N-1 - Failure of one metro B transformer | C20: =E13*$C$8+(1-E13)*$C$7 -> 0.3772124339 | H20: MTTR N-1 | I20: =K13*$I$8+(1-K13)*$I$7 -> 0.2387109844
B21: MTTR associated with the first metro B transformer | C21: =C20*12 -> 4.526549206 | D21: months | H21: Factor | I21: =I20*12 -> 2.864531812 | J21: months
B23: N-2 Contingency | H23: N-2 Contingency
B24: MTTR N-2 - Failure of a second metro B transformer | C24: =((E13+E14+E15)*$C$8+(E16)*$C$7)*C20 -> 0.2691945417 | H24: MTTR N-2 | I24: =((K13+K14+K15)*$I$8+(K16)*$I$7)*I20 -> 0.1355300715
B25: MTTR associated with the second metro B transformer | C25: =C24/C20*12 -> 8.56370101 | D25: months | H25: Factor | I25: =I24/I20*12 -> 6.813096022 | J25: months
B27: N-3 Contingency | H27: N-3 Contingency
B28: MTTR N-3 - Failure of a third metro B transformer | C28: =C24*C8 -> 0.2691945417 | D28: MTTR N-1 x MTTR N-2 x MTTR N-3 | H28: MTTR N-3 | I28: =I24*I8 -> 0.1355300715 | J28: MTTR N-1 x MTTR N-2 x MTTR N-3
B29: MTTR associated with the third metro B transformer | C29: =C28/C24*12 -> 12 | D29: months | E29: Procuring a new transformer | H29: Factor | I29: =I28/I24*12 -> 12 | J29: months | K29: Procuring a new transformer
B31: N-4 Contingency | H31: N-4 Contingency
B32: MTTR N-4 - Failure of a fourth metro B transformer | C32: =C24*C8 -> 0.2691945417 | H32: MTTR N-3 | I32: =I24*I8 -> 0.1355300715
B33: MTTR associated with the fourth metro B transformer | C33: =C32/C28*12 -> 12 | D33: months | H33: Factor | I33: =I32/I28*12 -> 12 | J33: months
C36: Input
C37: Calculation
C38: Output
C39: Note
C40: Explanation

Sheet Metro B Tx POFs
A1: Station | B1: FLOC | C1: FLOC Description | D1: Equipment ID | E1: Start-Up Date | F1: Age | G1: Object Type | H1: Nominal Voltage (kV) | I1: Manufacturer | J1: User Status | K1: PoF '25 | L1: PoF '26 | M1: PoF '27 | N1: PoF '28 | O1: PoF '29 | P1: PoF '30 | Q1: PoF '31 | R1: PoF '32 | S1: PoF '33 | T1: PoF '34 | U1: PoF '35 | V1: PoF '36 | W1: PoF '37 | X1: PoF '38 | Y1: PoF '39 | Z1: PoF '40 | AA1: Safety CoF ($) | AB1: Environment CoF ($) | AC1: Total Risk '26 ($) | AD1: Total Risk '27 ($) | AE1: Total Risk '28 ($) | AF1: Total Risk '29 ($) | AG1: Total Risk '30 ($) | AH1: Total Risk '31 ($) | AI1: Total Risk '32 ($) | AJ1: Likelihood
A2: ATS | B2: TS-ATSX-TRNFMR-9000100001 | C2: B2 TR | D2: 30418395 | E2: 1/01/1992 | F2: 33 | G2: PT | H2: 220 | I2: WILSON | J2: SERV | K2: 0.03420668427 | L2: 0.03511074707 | M2: 0.03602429595 | N2: 0.03694726559 | O2: 0.03787959122 | P2: 0.03882120857 | Q2: 0.03977205386 | R2: 0.04073206379 | S2: 0.04170117552 | T2: 0.04267932665 | U2: 0.0436664552 | V2: 0.04466249962 | W2: 0.04566739875 | X2: 0.0466810918 | Y2: 0.04770351839 | Z2: 0.04873461846 | AA2: 109557.3 | AB2: 500 | AC2: 72636.67208 | AD2: 77586.76946 | AE2: 82826.23351 | AF2: 88368.16842 | AG2: 94226.06388 | AH2: 100413.7995 | AI2: 106945.6507 | AJ2: 3
A3: ATS | B3: TS-ATSX-TRNFMR-9000102131 | C3: B4 TR | D3: 30289167 | E3: 17/01/2008 | F3: 17 | G3: PT | H3: 220 | I3: AREVA | J3: SERV | K3: 0.01995722601 | L3: 0.02068347555 | M3: 0.02142047212 | N3: 0.02216813633 | O3: 0.02292638996 | P3: 0.02369515586 | Q3: 0.02447435792 | R3: 0.02526392101 | S3: 0.02606377093 | T3: 0.0268738344 | U3: 0.02769403898 | V3: 0.02852431306 | W3: 0.02936458581 | X3: 0.03021478714 | Y3: 0.0310748477 | Z3: 0.03194469882 | AA3: 109557.3 | AB3: 500 | AC3: 49138.98207 | AD3: 53015.36962 | AE3: 57137.1763 | AF3: 61516.15373 | AG3: 66164.42514 | AH3: 71094.49025 | AI3: 76319.23087 | AJ3: 1
A4: ATS | B4: TS-ATSX-TRNFMR-9000102027 | C4: B3 TR | D4: 30253033 | E4: 30/10/2004 | F4: 20 | G4: PT | H4: 220 | I4: ALSTOM | J4: SERV | K4: 0.01895586195 | L4: 0.0196668864 | M4: 0.02038877135 | N4: 0.02112143572 | O4: 0.02186479967 | P4: 0.02261878451 | Q4: 0.02338331266 | R4: 0.0241583076 | S4: 0.0249436938 | T4: 0.0257393967 | U4: 0.02654534265 | V4: 0.02736145888 | W4: 0.02818767344 | X4: 0.02902391519 | Y4: 0.02987011375 | Z4: 0.03072619947 | AA4: 109557.3 | AB4: 500 | AC4: 41004.01277 | AD4: 44449.382 | AE4: 48123.58132 | AF4: 52037.94474 | AG4: 56204.17439 | AH4: 60634.34545 | AI4: 65340.91229 | AJ4: 1
A5: BLTS | B5: TS-BLTS-TRNFMR-9000102191 | C5: B3 TR | D5: 30166749 | E5: 16/12/2013 | F5: 11 | G5: PT | H5: 220 | I5: WILSON | J5: SERV | K5: 0.02046592596 | L5: 0.02119972828 | M5: 0.02194422177 | N5: 0.02269932788 | O5: 0.02346496914 | P5: 0.02424106913 | Q5: 0.02502755244 | R5: 0.0258243446 | S5: 0.02663137206 | T5: 0.02744856212 | U5: 0.02827584294 | V5: 0.02911314346 | W5: 0.02996039336 | X5: 0.03081752309 | Y5: 0.03168446377 | Z5: 0.0325611472 | AA5: 109557.3 | AB5: 500 | AC5: 6426.277753 | AD5: 6919.468053 | AE5: 7446.320685 | AF5: 8008.756962 | AG5: 8608.780653 | AH5: 9248.480494 | AI5: 9930.032162 | AJ5: 1
A6: BLTS | B6: TS-BLTS-TRNFMR-9000103745 | C6: B5 TR | D6: 30439978 | E6: 22/02/2013 | F6: 12 | G6: PT | H6: 220 | I6: WILSON | J6: SERV | K6: 0.01995722601 | L6: 0.02068347555 | M6: 0.02142047212 | N6: 0.02216813633 | O6: 0.02292638996 | P6: 0.02369515586 | Q6: 0.02447435792 | R6: 0.02526392101 | S6: 0.02606377093 | T6: 0.0268738344 | U6: 0.02769403898 | V6: 0.02852431306 | W6: 0.02936458581 | X6: 0.03021478714 | Y6: 0.0310748477 | Z6: 0.03194469882 | AA6: 109557.3 | AB6: 500 | AC6: 6303.742883 | AD6: 6791.217171 | AE6: 7312.103389 | AF6: 7868.314794 | AG6: 8461.847218 | AH6: 9094.780986 | AI6: 9769.283691 | AJ6: 1
A7: BLTS | B7: TS-BLTS-TRNFMR-9000100867 | C7: B1 TR | D7: 30422361 | E7: 5/08/2012 | F7: 13 | G7: PT | H7: 220 | I7: WILSON | J7: SERV | K7: 0.02149922201 | L7: 0.02224801241 | M7: 0.023007384 | N7: 0.02377725975 | O7: 0.02455756364 | P7: 0.02534822065 | Q7: 0.02614915669 | R7: 0.02696029856 | S7: 0.02778157391 | T7: 0.02861291121 | U7: 0.02945423971 | V7: 0.03030548942 | W7: 0.03116659104 | X7: 0.03203747598 | Y7: 0.03291807629 | Z7: 0.03380832468 | AA7: 109557.3 | AB7: 500 | AC7: 6664.168212 | AD7: 7168.298743 | AE7: 7706.576927 | AF7: 8280.940334 | AG7: 8893.408542 | AH7: 9546.086546 | AI7: 10241.16634 | AJ7: 1
A8: BTS | B8: TS-BTSX-TRNFMR-8000000911 | C8: B1 TR | D8: 32541179 | E8: 28/06/2016 | F8: 9 | G8: PT | H8: 220 | I8: ABB | J8: SERV | K8: 0.01340901553 | L8: 0.01402513563 | M8: 0.01465285807 | N8: 0.01529208834 | O8: 0.0159427339 | P8: 0.01660470404 | Q8: 0.01727790979 | R8: 0.01796226383 | S8: 0.01865768037 | T8: 0.0193640751 | U8: 0.02008136508 | V8: 0.0208094687 | W8: 0.02154830562 | X8: 0.02229779665 | Y8: 0.02305786375 | Z8: 0.02382842996 | AA8: 109557.3 | AB8: 500 | AC8: 2060.133248 | AD8: 2188.877523 | AE8: 2324.840913 | AF8: 2468.516846 | AG8: 2620.433461 | AH8: 2781.156573 | AI8: 2951.290911 | AJ8: 1
A9: BTS | B9: TS-BTSX-TRNFMR-8000000912 | C9: B2 TR | D9: 32541183 | E9: 28/06/2016 | F9: 9 | G9: PT | H9: 220 | I9: ABB | J9: SERV | K9: 0.01340901553 | L9: 0.01402513563 | M9: 0.01465285807 | N9: 0.01529208834 | O9: 0.0159427339 | P9: 0.01660470404 | Q9: 0.01727790979 | R9: 0.01796226383 | S9: 0.01865768037 | T9: 0.0193640751 | U9: 0.02008136508 | V9: 0.0208094687 | W9: 0.02154830562 | X9: 0.02229779665 | Y9: 0.02305786375 | Z9: 0.02382842996 | AA9: 109557.3 | AB9: 500 | AC9: 2060.133248 | AD9: 2188.877523 | AE9: 2324.840913 | AF9: 2468.516846 | AG9: 2620.433461 | AH9: 2781.156573 | AI9: 2951.290911 | AJ9: 1
A10: BTS | B10: TS-BTSX-TRNFMR-8000000913 | C10: B3 TR | D10: 32541184 | E10: 28/06/2016 | F10: 9 | G10: PT | H10: 220 | I10: ABB | J10: SERV | K10: 0.009790972581 | L10: 0.01033145914 | M10: 0.01088419911 | N10: 0.01144908231 | O10: 0.0120260015 | P10: 0.0126148522 | Q10: 0.01321553249 | R10: 0.01382794284 | S10: 0.01445198601 | T10: 0.01508756684 | U10: 0.01573459218 | V10: 0.01639297076 | W10: 0.01706261307 | X10: 0.01774343126 | Y10: 0.01843533907 | Z10: 0.01913825171 | AA10: 109557.3 | AB10: 500 | AC10: 1535.756775 | AD10: 1647.88342 | AE10: 1766.836636 | AF10: 1893.090184 | AG10: 2027.151966 | AH10: 2169.567887 | AI10: 2320.921904 | AJ10: 1
A11: CBTS | B11: TS-CBTS-TRNFMR-9000103954 | C11: B3 TR | D11: 30342890 | E11: 20/12/2009 | F11: 15 | G11: PT | H11: 220 | I11: ABB | J11: SERV | K11: 0.01701807931 | L11: 0.0176981627 | M11: 0.01838934135 | N11: 0.0190915304 | O11: 0.01980464638 | P11: 0.0205286072 | Q11: 0.02126333202 | R11: 0.02200874122 | S11: 0.02276475633 | T11: 0.02353129998 | U11: 0.02430829583 | V11: 0.02509566857 | W11: 0.02589334379 | X11: 0.02670124802 | Y11: 0.02751930866 | Z11: 0.0283474539 | AA11: 109557.3 | AB11: 500 | AC11: 1683013.271 | AD11: 1777617.024 | AE11: 1875511.952 | AF11: 1976758.867 | AG11: 2081419.752 | AH11: 2189557.786 | AI11: 2301237.366 | AJ11: 1
A12: CBTS | B12: TS-CBTS-TRNFMR-9000102025 | C12: B1 TR | D12: 30112314 | E12: 22/01/2005 | F12: 20 | G12: PT | H12: 220 | I12: WILSON | J12: SERV | K12: 0.02527982302 | L12: 0.026079878 | M12: 0.02689014507 | N12: 0.02771055182 | O12: 0.02854102663 | P12: 0.0293814987 | Q12: 0.03023189797 | R12: 0.03109215508 | S12: 0.03196220138 | T12: 0.03284196887 | U12: 0.0337313902 | V12: 0.03463039861 | W12: 0.03553892793 | X12: 0.03645691257 | Y12: 0.03738428747 | Z12: 0.03832098808 | AA12: 109557.3 | AB12: 500 | AC12: 2413272.241 | AD12: 2528861.631 | AE12: 2647945.594 | AF12: 2770585.705 | AG12: 2896844.792 | AH12: 3026786.953 | AI12: 3160477.579 | AJ12: 2
A13: CBTS | B13: TS-CBTS-TRNFMR-9000102026 | C13: B2 TR | D13: 30290613 | E13: 31/03/2005 | F13: 20 | G13: PT | H13: 220 | I13: WILSON | J13: SERV | K13: 0.02640600168 | L13: 0.02722037387 | M13: 0.0280448567 | N13: 0.0288793789 | O13: 0.02972386997 | P13: 0.03057826012 | Q13: 0.03144248031 | R13: 0.03231646213 | S13: 0.03320013786 | T13: 0.03409344039 | U13: 0.03499630319 | V13: 0.03590866035 | W13: 0.03683044647 | X13: 0.03776159671 | Y13: 0.03870204674 | Z13: 0.03965173272 | AA13: 109557.3 | AB13: 500 | AC13: 2560640.357 | AD13: 2680066.056 | AE13: 2803019.55 | AF13: 2929562.571 | AG13: 3059758.119 | AH13: 3193670.472 | AI13: 3331365.217 | AJ13: 2
A14: ERTS | B14: TS-ERTS-TRNFMR-2602337129 | C14: B1 TR | D14: 33408512 | E14: 14/12/2023 | F14: 1 | G14: PT | H14: 220 | I14: WILSON | J14: SERV | K14: 0.006351753561 | L14: 0.006802817389 | M14: 0.007267012814 | N14: 0.007744201298 | O14: 0.008234249398 | P14: 0.008737028341 | Q14: 0.00925241366 | R14: 0.009780284858 | S14: 0.01032052512 | T14: 0.01087302102 | U14: 0.01143766233 | V14: 0.01201434176 | W14: 0.01260295475 | X14: 0.01320339934 | Y14: 0.01381557598 | Z14: 0.01443938734 | AA14: 109557.3 | AB14: 500 | AC14: 3704.3999 | AD14: 4111.672583 | AE14: 4552.040365 | AF14: 5027.612381 | AG14: 5540.610013 | AH14: 6093.369864 | AI14: 6688.347185 | AJ14: 1
A15: ERTS | B15: TS-ERTS-TRNFMR-9000106033 | C15: B3 TR | D15: 33155766 | E15: 18/09/2019 | F15: 6 | G15: PT | H15: 220 | I15: ABB | J15: SERV | K15: 0.01055329793 | L15: 0.01111095687 | M15: 0.01168071538 | N15: 0.01226246735 | O15: 0.01285610935 | P15: 0.01346154045 | Q15: 0.01407866207 | R15: 0.0147073778 | S15: 0.01534759334 | T15: 0.0159992163 | U15: 0.01666215612 | V15: 0.01733632398 | W15: 0.01802163269 | X15: 0.01871799659 | Y15: 0.0194253315 | Z15: 0.02014355459 | AA15: 109557.3 | AB15: 500 | AC15: 6653.187859 | AD15: 7229.168879 | AE15: 7845.070408 | AF15: 8503.285159 | AG15: 9206.324381 | AH15: 9956.821868 | AI15: 10757.53721 | AJ15: 1
A16: ERTS | B16: TS-ERTS-TRNFMR-9000101309 | C16: B2 TR | D16: 30068367 | E16: 24/11/2011 | F16: 13 | G16: PT | H16: 220 | I16: WILSON | J16: SERV | K16: 0.01749433391 | L16: 0.01818221512 | M16: 0.01888113187 | N16: 0.01959100028 | O16: 0.02031173786 | P16: 0.0210432634 | Q16: 0.02178549692 | R16: 0.02253835961 | S16: 0.02330177379 | T16: 0.02407566282 | U16: 0.02485995108 | V16: 0.02565456389 | W16: 0.02645942752 | X16: 0.0272744691 | Y16: 0.0280996166 | Z16: 0.02893479879 | AA16: 109557.3 | AB16: 500 | AC16: 11411.30423 | AD16: 12191.67488 | AE16: 13019.64541 | AF16: 13897.96735 | AG16: 14829.5192 | AH16: 15817.31061 | AI16: 16864.48492 | AJ16: 1
A17: ERTS | B17: TS-ERTS-TRNFMR-9000105193 | C17: B4 TR | D17: 33408511 | E17: 3/07/2024 | F17: 1 | G17: PT | H17: 220 | I17: WILSON | J17: SERV | K17: 0.006351753561 | L17: 0.006802817389 | M17: 0.007267012814 | N17: 0.007744201298 | O17: 0.008234249398 | P17: 0.008737028341 | Q17: 0.00925241366 | R17: 0.009780284858 | S17: 0.01032052512 | T17: 0.01087302102 | U17: 0.01143766233 | V17: 0.01201434176 | W17: 0.01260295475 | X17: 0.01320339934 | Y17: 0.01381557598 | Z17: 0.01443938734 | AA17: 109557.3 | AB17: 500 | AC17: 3704.3999 | AD17: 4111.672583 | AE17: 4552.040365 | AF17: 5027.612381 | AG17: 5540.610013 | AH17: 6093.369864 | AI17: 6688.347185 | AJ17: 1
A18: FBTS | B18: TS-FBTS-TRNFMR-9000102306 | C18: B3 TR | D18: 30192651 | E18: 1/06/1989 | F18: 36 | G18: PT | H18: 220 | I18: WILSON | J18: SERV | K18: 0.04075136381 | L18: 0.041720657 | M18: 0.04269898834 | N18: 0.04368629588 | O18: 0.04468251805 | P18: 0.04568759372 | Q18: 0.04670146209 | R18: 0.0477240628 | S18: 0.04875533579 | T18: 0.04979522138 | U18: 0.05084366023 | V18: 0.05190059333 | W18: 0.05296596197 | X18: 0.05403970776 | Y18: 0.05512177261 | Z18: 0.05621209872 | AA18: 109557.3 | AB18: 500 | AC18: 11669.05399 | AD18: 12509.15832 | AE18: 13407.2399 | AF18: 14366.41565 | AG18: 15389.91362 | AH18: 16481.07661 | AI18: 17643.36437 | AJ18: 3
A19: FBTS | B19: TS-FBTS-TRNFMR-9000101877 | C19: B1 220/66KV 150MVA TR | D19: 30258017 | E19: 23/12/2016 | F19: 8 | G19: PT | H19: 220 | I19: WILSON | J19: SERV | K19: 0.01340901553 | L19: 0.01402513563 | M19: 0.01465285807 | N19: 0.01529208834 | O19: 0.0159427339 | P19: 0.01660470404 | Q19: 0.01727790979 | R19: 0.01796226383 | S19: 0.01865768037 | T19: 0.0193640751 | U19: 0.02008136508 | V19: 0.0208094687 | W19: 0.02154830562 | X19: 0.02229779665 | Y19: 0.02305786375 | Z19: 0.02382842996 | AA19: 109557.3 | AB19: 500 | AC19: 6813.627142 | AD19: 7420.969832 | AE19: 8072.431549 | AF19: 8770.539745 | AG19: 9517.925664 | AH19: 10317.32808 | AI19: 11171.59528 | AJ19: 1
A20: FBTS | B20: TS-FBTS-TRNFMR-2602058480 | C20: B2 TR | D20: 33252644 | E20: 28/03/2021 | F20: 4 | G20: PT | H20: 220 | I20: ABB | J20: SERV | K20: 0.007992528944 | L20: 0.00848908563 | M20: 0.008998309164 | N20: 0.009520077144 | O20: 0.01005427098 | P20: 0.01060077563 | Q20: 0.01115947932 | R20: 0.01173027334 | S20: 0.01231305182 | T20: 0.01290771156 | U20: 0.01351415183 | V20: 0.01413227424 | W20: 0.01476198258 | X20: 0.0154031827 | Y20: 0.01605578239 | Z20: 0.01671969123 | AA20: 109557.3 | AB20: 500 | AC20: 3929.943108 | AD20: 4360.314772 | AE20: 4827.089401 | AF20: 5332.582432 | AG20: 5879.211373 | AH20: 6469.499378 | AI20: 7106.078583 | AJ20: 1
A21: GTS | B21: TS-GTSX-TRNFMR-9000100730 | C21: B4 TR | D21: 30134344 | E21: 1/01/1968 | F21: 57 | G21: PT | H21: 220 | I21: TOSHIBA | J21: SERV | K21: 0.04919520778 | L21: 0.05023872725 | M21: 0.05129077493 | N21: 0.05235129191 | O21: 0.05342021964 | P21: 0.05449749986 | Q21: 0.0555830746 | R21: 0.05667688618 | S21: 0.05777887721 | T21: 0.05888899056 | U21: 0.06000716937 | V21: 0.06113335704 | W21: 0.06226749721 | X21: 0.06340953378 | Y21: 0.06455941088 | Z21: 0.06571707286 | AA21: 109557.3 | AB21: 500 | AC21: 22688.49657 | AD21: 24137.48004 | AE21: 25671.46208 | AF21: 27294.4597 | AG21: 29010.63019 | AH21: 30824.27523 | AI21: 32739.84402 | AJ21: 4
A22: GTS | B22: TS-GTSX-TRNFMR-9000105993 | C22: B1 TR | D22: 30329521 | E22: 1/07/2014 | F22: 11 | G22: PT | H22: 220 | I22: ABB | J22: SERV | K22: 0.01797606888 | L22: 0.01867170588 | M22: 0.0193783194 | N22: 0.02009582652 | O22: 0.02082414567 | P22: 0.02156319651 | Q22: 0.0223128999 | R22: 0.02307317781 | S22: 0.0238439533 | T22: 0.02462515044 | U22: 0.0254166943 | V22: 0.02621851085 | W22: 0.02703052698 | X22: 0.02785267041 | Y22: 0.02868486967 | Z22: 0.02952705409 | AA22: 109557.3 | AB22: 500 | AC22: 10588.4187 | AD22: 11436.25178 | AE22: 12340.67623 | AF22: 13304.74077 | AG22: 14331.61714 | AH22: 15424.60454 | AI22: 16587.13292 | AJ22: 1
A23: GTS | B23: TS-GTSX-TRNFMR-9000100729 | C23: B3 TR | D23: 30070869 | E23: 16/09/2013 | F23: 12 | G23: PT | H23: 220 | I23: ABB | J23: SERV | K23: 0.01846325464 | L23: 0.01916660589 | M23: 0.01988087532 | N23: 0.02060598095 | O23: 0.02134184209 | P23: 0.02208837924 | Q23: 0.02284551404 | R23: 0.02361316924 | S23: 0.02439126862 | T23: 0.02517973695 | U23: 0.02597849993 | V23: 0.02678748419 | W23: 0.02760661721 | X23: 0.02843582727 | Y23: 0.02927504347 | Z23: 0.03012419565 | AA23: 109557.3 | AB23: 500 | AC23: 10888.81444 | AD23: 11752.60605 | AE23: 12673.67231 | AF23: 13655.08323 | AG23: 14700.03295 | AH23: 15811.84298 | AI23: 16993.96616 | AJ23: 1
A24: GTS | B24: TS-GTSX-TRNFMR-9000103966 | C24: B2 TR | D24: 30140360 | E24: 16/11/2010 | F24: 14 | G24: PT | H24: 220 | I24: WILSON | J24: SERV | K24: 0.01562249926 | L24: 0.01627893162 | M24: 0.01694664298 | N24: 0.01762554521 | O24: 0.01831555179 | P24: 0.01901657768 | Q24: 0.0197285393 | R24: 0.0204513544 | S24: 0.02118494201 | T24: 0.02192922237 | U24: 0.02268411692 | V24: 0.02344954816 | W24: 0.02422543964 | X24: 0.02501171594 | Y24: 0.02580830258 | Z24: 0.02661512597 | AA24: 109557.3 | AB24: 500 | AC24: 9114.675798 | AD24: 9882.000211 | AE24: 10702.43043 | AF24: 11578.90378 | AG24: 12514.47927 | AH24: 13512.34113 | AI24: 14575.80214 | AJ24: 1
A25: HTS | B25: TS-HTSX-TRNFMR-9000101836 | C25: B1 TR | D25: 33213393 | E25: 30/04/2017 | F25: 8 | G25: PT | H25: 220 | I25: ABB | J25: SERV | K25: 0.01298348192 | L25: 0.01359139962 | M25: 0.01421098722 | N25: 0.01484214877 | O25: 0.01548479038 | P25: 0.01613882007 | Q25: 0.01680414764 | R25: 0.01748068464 | S25: 0.0181683442 | T25: 0.01886704099 | U25: 0.0195766911 | V25: 0.02029721202 | W25: 0.02102852251 | X25: 0.02177054257 | Y25: 0.02252319338 | Z25: 0.02328639721 | AA25: 109557.3 | AB25: 500 | AC25: 25244.22375 | AD25: 27376.8406 | AE25: 29656.70551 | AF25: 32092.30399 | AG25: 34692.48334 | AH25: 37466.45916 | AI25: 40423.82234 | AJ25: 1
A26: HTS | B26: TS-HTSX-TRNFMR-9000103663 | C26: B2 TR | D26: 33213569 | E26: 30/11/2016 | F26: 8 | G26: PT | H26: 220 | I26: ABB | J26: SERV | K26: 0.01472007418 | L26: 0.01536051885 | M26: 0.0160123691 | N26: 0.01667553443 | O26: 0.01734992604 | P26: 0.01803545676 | Q26: 0.01873204098 | R26: 0.01943959453 | S26: 0.02015803463 | T26: 0.02088727979 | U26: 0.02162724979 | V26: 0.02237786559 | W26: 0.02313904925 | X26: 0.02391072391 | Y26: 0.02469281376 | Z26: 0.02548524391 | AA26: 109557.3 | AB26: 500 | AC26: 28580.25649 | AD26: 30857.0511 | AE26: 33286.0397 | AF26: 35875.91901 | AG26: 38635.75178 | AH26: 41574.97423 | AI26: 44703.40125 | AJ26: 1
A27: HTS | B27: TS-HTSX-TRNFMR-9000103664 | C27: B3 TR | D27: 32697712 | E27: 31/05/2016 | F27: 9 | G27: PT | H27: 220 | I27: ABB | J27: SERV | K27: 0.006351753561 | L27: 0.006802817389 | M27: 0.007267012814 | N27: 0.007744201298 | O27: 0.008234249398 | P27: 0.008737028341 | Q27: 0.00925241366 | R27: 0.009780284858 | S27: 0.01032052512 | T27: 0.01087302102 | U27: 0.01143766233 | V27: 0.01201434176 | W27: 0.01260295475 | X27: 0.01320339934 | Y27: 0.01381557598 | Z27: 0.01443938734 | AA27: 109557.3 | AB27: 500 | AC27: 11338.33108 | AD27: 12682.32954 | AE27: 14143.11153 | AF27: 15728.11136 | AG27: 17445.1059 | AH27: 19302.22119 | AI27: 21307.93951 | AJ27: 1
A28: KTS | B28: TS-KTSX-TRNFMR-9000102175 | C28: B5 TR | D28: 30089713 | E28: 12/02/2010 | F28: 15 | G28: PT | H28: 220 | I28: ABB | J28: SERV | K28: 0.02584039072 | L28: 0.02664762221 | M28: 0.02746501486 | N28: 0.02829249684 | O28: 0.0291299971 | P28: 0.02997744535 | Q28: 0.03083477204 | R28: 0.03170190831 | S28: 0.03257878597 | T28: 0.03346533747 | U28: 0.03436149588 | V28: 0.03526719487 | W28: 0.03618236866 | X28: 0.03710695204 | Y28: 0.03804088032 | Z28: 0.03898408931 | AA28: 109557.3 | AB28: 500 | AC28: 4249.168168 | AD28: 4459.22195 | AE28: 4679.67094 | AF28: 4911.108922 | AG28: 5154.161905 | AH28: 5409.489521 | AI28: 5677.786556 | AJ28: 2
A29: KTS | B29: TS-KTSX-TRNFMR-9000105084 | C29: B4 TR | D29: 30360363 | E29: 19/03/1971 | F29: 54 | G29: PT | H29: 220 | I29: ENGLISH ELECTRIC | J29: SERV | K29: 0.05593002314 | L29: 0.05702644205 | M29: 0.05813102221 | N29: 0.05924370658 | O29: 0.06036443838 | P29: 0.0614931611 | Q29: 0.06262981845 | R29: 0.0637743544 | S29: 0.06492671316 | T29: 0.06608683917 | U29: 0.06725467708 | V29: 0.06843017178 | W29: 0.06961326836 | X29: 0.07080391212 | Y29: 0.07200204858 | Z29: 0.07320762343 | AA29: 109557.3 | AB29: 500 | AC29: 8486.725458 | AD29: 8794.318498 | AE29: 9115.873539 | AF29: 9452.154519 | AG29: 9803.964002 | AH29: 10172.14425 | AI29: 10557.57932 | AJ29: 4
A30: KTS | B30: TS-KTSX-TRNFMR-9000101786 | C30: B2 TR | D30: 30177594 | E30: 20/10/2012 | F30: 12 | G30: PT | H30: 220 | I30: WILSON | J30: SERV | K30: 0.01995722601 | L30: 0.02068347555 | M30: 0.02142047212 | N30: 0.02216813633 | O30: 0.02292638996 | P30: 0.02369515586 | Q30: 0.02447435792 | R30: 0.02526392101 | S30: 0.02606377093 | T30: 0.0268738344 | U30: 0.02769403898 | V30: 0.02852431306 | W30: 0.02936458581 | X30: 0.03021478714 | Y30: 0.0310748477 | Z30: 0.03194469882 | AA30: 109557.3 | AB30: 500 | AC30: 3292.432406 | AD30: 3473.034672 | AE30: 3662.951048 | AF30: 3862.723238 | AG30: 4072.923871 | AH30: 4294.15724 | AI30: 4527.060892 | AJ30: 1
A31: KTS | B31: TS-KTSX-TRNFMR-9000101991 | C31: B3 TR | D31: 30396377 | E31: 24/01/2001 | F31: 24 | G31: PT | H31: 220 | I31: ABB | J31: SERV | K31: 0.02149922201 | L31: 0.02224801241 | M31: 0.023007384 | N31: 0.02377725975 | O31: 0.02455756364 | P31: 0.02534822065 | Q31: 0.02614915669 | R31: 0.02696029856 | S31: 0.02778157391 | T31: 0.02861291121 | U31: 0.02945423971 | V31: 0.03030548942 | W31: 0.03116659104 | X31: 0.03203747598 | Y31: 0.03291807629 | Z31: 0.03380832468 | AA31: 109557.3 | AB31: 500 | AC31: 3546.366189 | AD31: 3735.141283 | AE31: 3933.532683 | AF31: 4142.096989 | AG31: 4361.421433 | AH31: 4592.126131 | AI31: 4834.864483 | AJ31: 1
A32: KTS | B32: TS-KTSX-TRNFMR-9000102355 | C32: B1 TR | D32: 30308721 | E32: 24/04/2013 | F32: 12 | G32: PT | H32: 220 | I32: WILSON | J32: SERV | K32: 0.01995722601 | L32: 0.02068347555 | M32: 0.02142047212 | N32: 0.02216813633 | O32: 0.02292638996 | P32: 0.02369515586 | Q32: 0.02447435792 | R32: 0.02526392101 | S32: 0.02606377093 | T32: 0.0268738344 | U32: 0.02769403898 | V32: 0.02852431306 | W32: 0.02936458581 | X32: 0.03021478714 | Y32: 0.0310748477 | Z32: 0.03194469882 | AA32: 109557.3 | AB32: 500 | AC32: 3292.432406 | AD32: 3473.034672 | AE32: 3662.951048 | AF32: 3862.723238 | AG32: 4072.923871 | AH32: 4294.15724 | AI32: 4527.060892 | AJ32: 1
A33: MTS | B33: TS-MTSX-TRNFMR-9000105415 | C33: B3 TR | D33: 30376616 | E33: 2/05/2007 | F33: 18 | G33: PT | H33: 220 | I33: AREVA | J33: SERV | K33: 0.01654733504 | L33: 0.01721957805 | M33: 0.01790297678 | N33: 0.01859744534 | O33: 0.01930289927 | P33: 0.02001925553 | Q33: 0.02074643242 | R33: 0.02148434945 | S33: 0.02223292736 | T33: 0.02299208801 | U33: 0.02376175435 | V33: 0.02454185034 | W33: 0.02533230095 | X33: 0.02613303205 | Y33: 0.02694397044 | Z33: 0.02776504376 | AA33: 109557.3 | AB33: 500 | AC33: 74191.46259 | AD33: 81952.75642 | AE33: 90341.72523 | AF33: 99394.40303 | AG33: 109148.0575 | AH33: 119641.2033 | AI33: 130913.6153 | AJ33: 1
A34: MTS | B34: TS-MTSX-TRNFMR-9000102379 | C34: B1 TR | D34: 30006289 | E34: 3/12/2007 | F34: 17 | G34: PT | H34: 220 | I34: AREVA | J34: SERV | K34: 0.01846325464 | L34: 0.01916660589 | M34: 0.01988087532 | N34: 0.02060598095 | O34: 0.02134184209 | P34: 0.02208837924 | Q34: 0.02284551404 | R34: 0.02361316924 | S34: 0.02439126862 | T34: 0.02517973695 | U34: 0.02597849993 | V34: 0.02678748419 | W34: 0.02760661721 | X34: 0.02843582727 | Y34: 0.02927504347 | Z34: 0.03012419565 | AA34: 109557.3 | AB34: 500 | AC34: 74640.85129 | AD34: 82412.39445 | AE34: 90811.6295 | AF34: 99874.5899 | AG34: 109638.5429 | AH34: 120142.0027 | AI34: 131424.744 | AJ34: 1
A35: RTS | B35: TS-RTSX-TRNFMR-9000104969 | C35: B1 220/66/11KV TR | D35: 32950096 | E35: 11/12/2017 | F35: 7 | G35: PT | H35: 220 | I35: ALSTOM | J35: SERV | K35: 0.01298348192 | L35: 0.01359139962 | M35: 0.01421098722 | N35: 0.01484214877 | O35: 0.01548479038 | P35: 0.01613882007 | Q35: 0.01680414764 | R35: 0.01748068464 | S35: 0.0181683442 | T35: 0.01886704099 | U35: 0.0195766911 | V35: 0.02029721202 | W35: 0.02102852251 | X35: 0.02177054257 | Y35: 0.02252319338 | Z35: 0.02328639721 | AA35: 109557.3 | AB35: 500 | AC35: 9381.340106 | AD35: 10491.63938 | AE35: 11708.68281 | AF35: 13040.03515 | AG35: 14493.59589 | AH35: 16077.60559 | AI35: 17800.65273 | AJ35: 1
A36: RTS | B36: TS-RTSX-TRNFMR-9000100334 | C36: B2 TR | D36: 33034376 | E36: 5/08/2018 | F36: 7 | G36: PT | H36: 220 | I36: ALSTOM | J36: SERV | K36: 0.01174181586 | L36: 0.01232483305 | M36: 0.01291972946 | N36: 0.01352640441 | O36: 0.01414475956 | P36: 0.01477469873 | Q36: 0.01541612783 | R36: 0.01606895465 | S36: 0.01673308885 | T36: 0.01740844177 | U36: 0.01809492639 | V36: 0.0187924572 | W36: 0.01950095018 | X36: 0.02022032264 | Y36: 0.02095049322 | Z36: 0.0216913818 | AA36: 109557.3 | AB36: 500 | AC36: 8761.031067 | AD36: 9819.138722 | AE36: 10980.4027 | AF36: 12252.22977 | AG36: 13642.35841 | AH36: 15158.86681 | AI36: 16810.17812 | AJ36: 1
A37: RTS | B37: TS-RTSX-TRNFMR-8000002864 | C37: B5 TR | D37: 32789210 | E37: 9/04/2017 | F37: 8 | G37: PT | H37: 220 | I37: ALSTOM | J37: SERV | K37: 0.01133968946 | L37: 0.01191430596 | M37: 0.01250087383 | N37: 0.01309929066 | O37: 0.01370945648 | P37: 0.01433127362 | Q37: 0.01496464654 | R37: 0.01560948171 | S37: 0.0162656875 | T37: 0.01693317406 | U37: 0.01761185325 | V37: 0.0183016385 | W37: 0.01900244476 | X37: 0.0197141884 | Y37: 0.02043678715 | Z37: 0.02117016001 | AA37: 109557.3 | AB37: 500 | AC37: 8534.921 | AD37: 9574.078637 | AE37: 10715.12919 | AF37: 11965.42518 | AG37: 13332.65089 | AH37: 14824.82895 | AI37: 16450.32641 | AJ37: 1
A38: RWTS | B38: TS-RWTS-TRNFMR-9000105420 | C38: B1 TR | D38: 30092200 | E38: 18/12/2007 | F38: 17 | G38: PT | H38: 220 | I38: AREVA | J38: SERV | K38: 0.01945386193 | L38: 0.02017251899 | M38: 0.02090197951 | N38: 0.02164216328 | O38: 0.02239299126 | P38: 0.02315438556 | Q38: 0.02392626935 | R38: 0.0247085668 | S38: 0.02550120307 | T38: 0.02630410426 | U38: 0.02711719731 | V38: 0.02794041005 | W38: 0.0287736711 | X38: 0.02961690985 | Y38: 0.03047005645 | Z38: 0.03133304174 | AA38: 109557.3 | AB38: 500 | AC38: 7434.438072 | AD38: 8002.156579 | AE38: 8607.444899 | AF38: 9252.382405 | AG38: 9939.137433 | AH38: 10669.96966 | AI38: 11447.23324 | AJ38: 1
A39: RWTS | B39: TS-RWTS-TRNFMR-9000103449 | C39: B4 TR | D39: 32936197 | E39: 26/07/2018 | F39: 7 | G39: PT | H39: 220 | I39: ABB | J39: SERV | K39: 0.009790972581 | L39: 0.01033145914 | M39: 0.01088419911 | N39: 0.01144908231 | O39: 0.0120260015 | P39: 0.0126148522 | Q39: 0.01321553249 | R39: 0.01382794284 | S39: 0.01445198601 | T39: 0.01508756684 | U39: 0.01573459218 | V39: 0.01639297076 | W39: 0.01706261307 | X39: 0.01774343126 | Y39: 0.01843533907 | Z39: 0.01913825171 | AA39: 109557.3 | AB39: 500 | AC39: 3584.938793 | AD39: 3935.308707 | AE39: 4313.241193 | AF39: 4720.469406 | AG39: 5158.807528 | AH39: 5630.155349 | AI39: 6136.499017 | AJ39: 1
A40: RWTS | B40: TS-RWTS-TRNFMR-9000103450 | C40: B3 TR | D40: 30182680 | E40: 29/11/1984 | F40: 40 | G40: PT | H40: 220 | I40: WILSON | J40: SERV | K40: 0.04075136381 | L40: 0.041720657 | M40: 0.04269898834 | N40: 0.04368629588 | O40: 0.04468251805 | P40: 0.04568759372 | Q40: 0.04670146209 | R40: 0.0477240628 | S40: 0.04875533579 | T40: 0.04979522138 | U40: 0.05084366023 | V40: 0.05190059333 | W40: 0.05296596197 | X40: 0.05403970776 | Y40: 0.05512177261 | Z40: 0.05621209872 | AA40: 109557.3 | AB40: 500 | AC40: 13131.65102 | AD40: 13969.58117 | AE40: 14857.96655 | AF40: 15799.3504 | AG40: 16796.37286 | AH40: 17851.77495 | AI40: 18968.4011 | AJ40: 3
A41: RWTS | B41: TS-RWTS-TRNFMR-9000100293 | C41: B2 TR | D41: 30055996 | E41: 31/03/2009 | F41: 16 | G41: PT | H41: 220 | I41: WILSON | J41: SERV | K41: 0.02527982302 | L41: 0.026079878 | M41: 0.02689014507 | N41: 0.02771055182 | O41: 0.02854102663 | P41: 0.0293814987 | Q41: 0.03023189797 | R41: 0.03109215508 | S41: 0.03196220138 | T41: 0.03284196887 | U41: 0.0337313902 | V41: 0.03463039861 | W41: 0.03553892793 | X41: 0.03645691257 | Y41: 0.03738428747 | Z41: 0.03832098808 | AA41: 109557.3 | AB41: 500 | AC41: 9481.199506 | AD41: 10148.82753 | AE41: 10858.43399 | AF41: 11612.25038 | AG41: 12412.59966 | AH41: 13261.89924 | AI41: 14162.66422 | AJ41: 2
A42: SMTS | B42: TS-SMTS-TRNFMR-9000103942 | C42: B1 TR | D42: 30255860 | E42: 26/03/2009 | F42: 16 | G42: PT | H42: 220 | I42: AREVA | J42: SERV | K42: 0.02640600168 | L42: 0.02722037387 | M42: 0.0280448567 | N42: 0.0288793789 | O42: 0.02972386997 | P42: 0.03057826012 | Q42: 0.03144248031 | R42: 0.03231646213 | S42: 0.03320013786 | T42: 0.03409344039 | U42: 0.03499630319 | V42: 0.03590866035 | W42: 0.03683044647 | X42: 0.03776159671 | Y42: 0.03870204674 | Z42: 0.03965173272 | AA42: 109557.3 | AB42: 500 | AC42: 914200.7433 | AD42: 961406.2025 | AE42: 1010526.254 | AF42: 1061626.474 | AG42: 1114774.25 | AH42: 1170038.801 | AI42: 1227491.195 | AJ42: 2
A43: SMTS | B43: TS-SMTS-TRNFMR-9000101249 | C43: B3 TR | D43: 30018608 | E43: 28/09/2009 | F43: 16 | G43: PT | H43: 220 | I43: AREVA | J43: SERV | K43: 0.01797606888 | L43: 0.01867170588 | M43: 0.0193783194 | N43: 0.02009582652 | O43: 0.02082414567 | P43: 0.02156319651 | Q43: 0.0223128999 | R43: 0.02307317781 | S43: 0.0238439533 | T43: 0.02462515044 | U43: 0.0254166943 | V43: 0.02621851085 | W43: 0.02703052698 | X43: 0.02785267041 | Y43: 0.02868486967 | Z43: 0.02952705409 | AA43: 109557.3 | AB43: 500 | AC43: 622663.9618 | AD43: 662459.1371 | AE43: 704129.6274 | AF43: 747741.7323 | AG43: 793363.5456 | AH43: 841064.9756 | AI43: 890917.7631 | AJ43: 1
A44: SVTS | B44: TS-SVTS-TRNFMR-9000101602 | C44: B1 TR | D44: 30123334 | E44: 18/12/2001 | F44: 23 | G44: PT | H44: 220 | I44: WILSON | J44: SERV | K44: 0.02527982302 | L44: 0.026079878 | M44: 0.02689014507 | N44: 0.02771055182 | O44: 0.02854102663 | P44: 0.0293814987 | Q44: 0.03023189797 | R44: 0.03109215508 | S44: 0.03196220138 | T44: 0.03284196887 | U44: 0.0337313902 | V44: 0.03463039861 | W44: 0.03553892793 | X44: 0.03645691257 | Y44: 0.03738428747 | Z44: 0.03832098808 | AA44: 109557.3 | AB44: 500 | AC44: 5507.044644 | AD44: 5846.965449 | AE44: 6207.752466 | AF44: 6590.668911 | AG44: 6997.044 | AH44: 7428.275764 | AI44: 7885.834242 | AJ44: 2
A45: SVTS | B45: TS-SVTS-TRNFMR-9000105387 | C45: B4 TR | D45: 30027808 | E45: 31/10/2012 | F45: 12 | G45: PT | H45: 220 | I45: WILSON | J45: SERV | K45: 0.01846325464 | L45: 0.01916660589 | M45: 0.01988087532 | N45: 0.02060598095 | O45: 0.02134184209 | P45: 0.02208837924 | Q45: 0.02284551404 | R45: 0.02361316924 | S45: 0.02439126862 | T45: 0.02517973695 | U45: 0.02597849993 | V45: 0.02678748419 | W45: 0.02760661721 | X45: 0.02843582727 | Y45: 0.02927504347 | Z45: 0.03012419565 | AA45: 109557.3 | AB45: 500 | AC45: 4103.307292 | AD45: 4386.896398 | AE45: 4688.927975 | AF45: 5010.56217 | AG45: 5353.022424 | AH45: 5717.597814 | AI45: 6105.646066 | AJ45: 1
A46: SVTS | B46: TS-SVTS-TRNFMR-9000103413 | C46: B2 TR | D46: 30461961 | E46: 4/02/1999 | F46: 26 | G46: PT | H46: 220 | I46: ALSTOM | J46: SERV | K46: 0.02755225288 | L46: 0.02838080017 | M46: 0.02921935825 | N46: 0.03006785692 | O46: 0.0309262267 | P46: 0.0317943988 | Q46: 0.0326723051 | R46: 0.03355987811 | S46: 0.03445705097 | T46: 0.03536375742 | U46: 0.03627993173 | V46: 0.03720550874 | W46: 0.03814042382 | X46: 0.03908461285 | Y46: 0.04003801217 | Z46: 0.04100055862 | AA46: 109557.3 | AB46: 500 | AC46: 5938.270332 | AD46: 6293.945068 | AE46: 6671.156221 | AF46: 7071.195584 | AG46: 7495.421628 | AH46: 7945.262732 | AI46: 8422.2198 | AJ46: 2
A47: SVTS | B47: TS-SVTS-TRNFMR-9000102974 | C47: B3 TR | D47: 30107571 | E47: 5/06/2003 | F47: 22 | G47: PT | H47: 220 | I47: AREVA | J47: SERV | K47: 0.03110946637 | L47: 0.03197970783 | M47: 0.03285966912 | N47: 0.03374928291 | O47: 0.03464848245 | P47: 0.03555720159 | Q47: 0.03647537474 | R47: 0.03740293685 | S47: 0.03833982339 | T47: 0.03928597033 | U47: 0.04024131414 | V47: 0.04120579175 | W47: 0.04217934052 | X47: 0.04316189827 | Y47: 0.04415340324 | Z47: 0.04515379405 | AA47: 109557.3 | AB47: 500 | AC47: 6574.329768 | AD47: 6952.100491 | AE47: 7352.353498 | AF47: 7776.420733 | AG47: 8225.702454 | AH47: 8701.670002 | AI47: 9205.868545 | AJ47: 2
A48: TBTS | B48: TS-TBTS-TRNFMR-9000106334 | C48: B3 TR | D48: 30230878 | E48: 30/11/2013 | F48: 11 | G48: PT | H48: 220 | I48: WILSON | J48: SERV | K48: 0.01701807931 | L48: 0.0176981627 | M48: 0.01838934135 | N48: 0.0190915304 | O48: 0.01980464638 | P48: 0.0205286072 | Q48: 0.02126333202 | R48: 0.02200874122 | S48: 0.02276475633 | T48: 0.02353129998 | U48: 0.02430829583 | V48: 0.02509566857 | W48: 0.02589334379 | X48: 0.02670124802 | Y48: 0.02751930866 | Z48: 0.0283474539 | AA48: 109557.3 | AB48: 500 | AC48: 20154.74716 | AD48: 21766.9151 | AE48: 23480.69268 | AF48: 25300.94406 | AG48: 27232.69966 | AH48: 29281.15986 | AI48: 31451.69922 | AJ48: 1
A49: TBTS | B49: TS-TBTS-TRNFMR-9000104894 | C49: B1 TR | D49: 30119127 | E49: 4/12/1985 | F49: 39 | G49: PT | H49: 220 | I49: WILSON | J49: SERV | K49: 0.04211481961 | L49: 0.04309678479 | M49: 0.04408770124 | N49: 0.04508750758 | O49: 0.0460961428 | P49: 0.0471135463 | Q49: 0.04813965783 | R49: 0.04917441749 | S49: 0.05021776574 | T49: 0.05126964336 | U49: 0.05232999148 | V49: 0.05339875151 | W49: 0.05447586519 | X49: 0.05556127455 | Y49: 0.0566549219 | Z49: 0.05775674984 | AA49: 109557.3 | AB49: 500 | AC49: 44986.65718 | AD49: 47655.7254 | AE49: 50461.27928 | AF49: 53408.9412 | AG49: 56504.50431 | AH49: 59753.93563 | AI49: 63163.38046 | AJ49: 3
A50: TBTS | B50: TS-TBTS-TRNFMR-9000101593 | C50: B2 TR | D50: 30218602 | E50: 4/12/1985 | F50: 39 | G50: PT | H50: 220 | I50: WILSON | J50: SERV | K50: 0.04143086012 | L50: 0.0424065046 | M50: 0.0433911437 | N50: 0.04438471573 | O50: 0.04538715943 | P50: 0.04639841392 | Q50: 0.04741841869 | R50: 0.04844711361 | S50: 0.04948443887 | T50: 0.05053033505 | U50: 0.05158474302 | V50: 0.05264760399 | W50: 0.05371885948 | X50: 0.05479845132 | Y50: 0.05588632162 | Z50: 0.05698241277 | AA50: 109557.3 | AB50: 500 | AC50: 44590.26294 | AD50: 47244.3721 | AE50: 50034.39682 | AF50: 52965.9435 | AG50: 56044.78931 | AH50: 59276.88507 | AI50: 62668.35992 | AJ50: 3
A51: TSTS | B51: TS-TSTS-TRNFMR-9000101577 | C51: B3 TR | D51: 30136974 | E51: 1/01/1968 | F51: 57 | G51: PT | H51: 220 | I51: TOSHIBA | J51: SERV | K51: 0.06219241354 | L51: 0.06333393077 | M51: 0.0644832922 | N51: 0.06564044218 | O51: 0.0668053253 | P51: 0.06797788634 | Q51: 0.06915807032 | R51: 0.07034582246 | S51: 0.0715410882 | T51: 0.07274381316 | U51: 0.07395394318 | V51: 0.07517142428 | W51: 0.07639620267 | X51: 0.07762822476 | Y51: 0.07886743713 | Z51: 0.08011378653 | AA51: 109557.3 | AB51: 500 | AC51: 377284.8943 | AD51: 395776.7241 | AE51: 415009.5934 | AF51: 435006.2038 | AG51: 455789.7352 | AH51: 477383.8529 | AI51: 499812.713 | AJ51: 4
A52: TSTS | B52: TS-TSTS-TRNFMR-9000100149 | C52: B2 TR | D52: 30300684 | E52: 17/04/1966 | F52: 59 | G52: PT | H52: 220 | I52: ASEA | J52: SERV | K52: 0.06953496493 | L52: 0.07072511235 | M52: 0.07192275605 | N52: 0.07312784173 | O52: 0.07434031528 | P52: 0.07556012279 | Q52: 0.07678721053 | R52: 0.07802152496 | S52: 0.07926301271 | T52: 0.0805116206 | U52: 0.08176729563 | V52: 0.08302998495 | W52: 0.0842996359 | X52: 0.08557619596 | Y52: 0.0868596128 | Z52: 0.08814983422 | AA52: 109557.3 | AB52: 500 | AC52: 398990.5266 | AD52: 418252.8303 | AE52: 438279.5467 | AF52: 459093.8329 | AG52: 480719.3266 | AH52: 503180.1519 | AI52: 526500.9254 | AJ52: 4
A53: TSTS | B53: TS-TSTS-TRNFMR-9000103388 | C53: B1 TR | D53: 30082161 | E53: 5/06/1984 | F53: 41 | G53: PT | H53: 220 | I53: FUJI | J53: SERV | K53: 0.03171935675 | L53: 0.03259642861 | M53: 0.03348317297 | N53: 0.03437952291 | O53: 0.0352854121 | P53: 0.03620077479 | Q53: 0.03712554576 | R53: 0.03805966035 | S53: 0.03900305437 | T53: 0.03995566414 | U53: 0.04091742645 | V53: 0.04188827854 | W53: 0.04286815811 | X53: 0.04385700324 | Y53: 0.04485475248 | Z53: 0.04586134471 | AA53: 109557.3 | AB53: 500 | AC53: 208879.3772 | AD53: 221424.2855 | AE53: 234557.2036 | AF53: 248298.483 | AG53: 262668.9502 | AH53: 277689.9129 | AI53: 293383.1658 | AJ53: 3
A54: TTS | B54: TS-TTSX-TRNFMR-9000101733 | C54: B5 TR | D54: 30223933 | E54: 12/02/1999 | F54: 26 | G54: PT | H54: 220 | I54: ABB | J54: SERV | K54: 0.03873987054 | L54: 0.03968992477 | M54: 0.04064914906 | N54: 0.04161748054 | O54: 0.04259485676 | P54: 0.04358121573 | Q54: 0.04457649584 | R54: 0.0455806359 | S54: 0.0465935751 | T54: 0.04761525301 | U54: 0.04864560955 | V54: 0.04968458501 | W54: 0.05073212 | X54: 0.05178815547 | Y54: 0.0528526327 | Z54: 0.05392549325 | AA54: 109557.3 | AB54: 500 | AC54: 5578.309892 | AD54: 5792.599538 | AE54: 6016.419542 | AF54: 6250.336779 | AG54: 6494.950144 | AH54: 6750.892172 | AI54: 7018.830596 | AJ54: 3
A55: TTS | B55: TS-TTSX-TRNFMR-9000100136 | C55: B3 TR | D55: 30149640 | E55: 15/10/2010 | F55: 14 | G55: PT | H55: 220 | I55: ABB | J55: SERV | K55: 0.01562249926 | L55: 0.01627893162 | M55: 0.01694664298 | N55: 0.01762554521 | O55: 0.01831555179 | P55: 0.01901657768 | Q55: 0.0197285393 | R55: 0.0204513544 | S55: 0.02118494201 | T55: 0.02192922237 | U55: 0.02268411692 | V55: 0.02344954816 | W55: 0.02422543964 | X55: 0.02501171594 | Y55: 0.02580830258 | Z55: 0.02661512597 | AA55: 109557.3 | AB55: 500 | AC55: 2317.995717 | AD55: 2450.140029 | AE55: 2588.975449 | AF55: 2734.911214 | AG55: 2888.382818 | AH55: 3049.853254 | AI55: 3219.814 | AJ55: 1
A56: TTS | B56: TS-TTSX-TRNFMR-9000101558 | C56: B2 TR | D56: 30325104 | E56: 24/12/2007 | F56: 17 | G56: PT | H56: 220 | I56: AREVA | J56: SERV | K56: 0.02755225288 | L56: 0.02838080017 | M56: 0.02921935825 | N56: 0.03006785692 | O56: 0.0309262267 | P56: 0.0317943988 | Q56: 0.0326723051 | R56: 0.03355987811 | S56: 0.03445705097 | T56: 0.03536375742 | U56: 0.03627993173 | V56: 0.03720550874 | W56: 0.03814042382 | X56: 0.03908461285 | Y56: 0.04003801217 | Z56: 0.04100055862 | AA56: 109557.3 | AB56: 500 | AC56: 4054.461795 | AD56: 4235.597993 | AE56: 4425.147296 | AF56: 4623.614517 | AG56: 4831.533786 | AH56: 5049.470403 | AI56: 5278.022014 | AJ56: 2
A57: TTS | B57: TS-TTSX-TRNFMR-9000103370 | C57: B1 TR | D57: 30272015 | E57: 27/04/2013 | F57: 12 | G57: PT | H57: 220 | I57: WILSON | J57: SERV | K57: 0.01846325464 | L57: 0.01916660589 | M57: 0.01988087532 | N57: 0.02060598095 | O57: 0.02134184209 | P57: 0.02208837924 | Q57: 0.02284551404 | R57: 0.02361316924 | S57: 0.02439126862 | T57: 0.02517973695 | U57: 0.02597849993 | V57: 0.02678748419 | W57: 0.02760661721 | X57: 0.02843582727 | Y57: 0.02927504347 | Z57: 0.03012419565 | AA57: 109557.3 | AB57: 500 | AC57: 2739.920659 | AD57: 2885.327228 | AE57: 3037.899678 | AF57: 3198.073858 | AG57: 3366.312883 | AH57: 3543.108104 | AI57: 3728.980719 | AJ57: 1
A58: TTS | B58: TS-TTSX-TRNFMR-9000101569 | C58: B4 TR | D58: 30302932 | E58: 30/03/1967 | F58: 58 | G58: PT | H58: 220 | I58: ASEA | J58: SERV | K58: 0.05066273259 | L58: 0.05171820894 | M58: 0.05278213092 | N58: 0.05385444006 | O58: 0.05493507824 | P58: 0.05602398761 | Q58: 0.05712111059 | R58: 0.05822638991 | S58: 0.05933976855 | T58: 0.06046118975 | U58: 0.06159059701 | V58: 0.06272793408 | W58: 0.06387314495 | X58: 0.06502617383 | Y58: 0.0661869652 | Z58: 0.06735546372 | AA58: 109557.3 | AB58: 500 | AC58: 7096.688806 | AD58: 7337.485524 | AE58: 7588.679542 | AF58: 7850.887675 | AG58: 8124.760536 | AH58: 8410.984324 | AI58: 8710.282744 | AJ58: 4
A59: WMTS | B59: TS-WMTS-TRNFMR-9000101546 | C59: B3 TR | D59: 33094675 | E59: 20/12/2018 | F59: 6 | G59: PT | H59: 220 | I59: TOSHIBA | J59: SERV | K59: 0.02417391922 | L59: 0.02495951255 | M59: 0.0257554211 | N59: 0.02656157124 | O59: 0.02737789021 | P59: 0.02820430608 | Q59: 0.02904074772 | R59: 0.02988714477 | S59: 0.0307434276 | T59: 0.03160952728 | U59: 0.03248537554 | V59: 0.03337090478 | W59: 0.03426604799 | X59: 0.03517073878 | Y59: 0.03608491132 | Z59: 0.03700850034 | AA59: 109557.3 | AB59: 500 | AC59: 2871.203447 | AD59: 2977.933933 | AE59: 3088.321171 | AF59: 3202.637322 | AG59: 3321.179859 | AH59: 3444.27241 | AI59: 3572.267367 | AJ59: 2
A60: WMTS | B60: TS-WMTS-TRNFMR-9000104095 | C60: B2 TR | D60: 33096331 | E60: 30/10/2019 | F60: 5 | G60: PT | H60: 220 | I60: TOSHIBA | J60: SERV | K60: 0.01298348192 | L60: 0.01359139962 | M60: 0.01421098722 | N60: 0.01484214877 | O60: 0.01548479038 | P60: 0.01613882007 | Q60: 0.01680414764 | R60: 0.01748068464 | S60: 0.0181683442 | T60: 0.01886704099 | U60: 0.0195766911 | V60: 0.02029721202 | W60: 0.02102852251 | X60: 0.02177054257 | Y60: 0.02252319338 | Z60: 0.02328639721 | AA60: 109557.3 | AB60: 500 | AC60: 1607.044809 | AD60: 1693.041588 | AE60: 1782.747416 | AF60: 1876.42843 | AG60: 1974.375722 | AH60: 2076.906887 | AI60: 2184.368234 | AJ60: 1
A61: WMTS | B61: TS-WMTS-TRNFMR-9000102453 | C61: B1 TR | D61: 33096330 | E61: 4/03/2021 | F61: 4 | G61: PT | H61: 220 | I61: TOSHIBA | J61: SERV | K61: 0.01016910778 | L61: 0.0107182079 | M61: 0.01127948378 | N61: 0.0118528273 | O61: 0.01243813319 | P61: 0.01303529879 | Q61: 0.01364422386 | R61: 0.0142648105 | S61: 0.01489696295 | T61: 0.01554058747 | U61: 0.01619559223 | V61: 0.01686188722 | W61: 0.01753938409 | X61: 0.01822799613 | Y61: 0.01892763813 | Z61: 0.0196382263 | AA61: 109557.3 | AB61: 500 | AC61: 1282.040018 | AD61: 1360.898577 | AE61: 1443.479833 | AF61: 1530.047067 | AG61: 1620.888704 | AH61: 1716.320356 | AI61: 1816.685538 | AJ61: 1

Sheet Country B & L Tx POFs
A1: Station | B1: FLOC | C1: FLOC Description | D1: Equipment ID | E1: Start-Up Date | F1: Age | G1: Object Type | H1: Nominal Voltage (kV) | I1: Manufacturer | J1: User Status | K1: PoF '25 | L1: PoF '26 | M1: PoF '27 | N1: PoF '28 | O1: PoF '29 | P1: PoF '30 | Q1: PoF '31 | R1: PoF '32 | S1: PoF '33 | T1: PoF '34 | U1: PoF '35 | V1: PoF '36 | W1: PoF '37 | X1: PoF '38 | Y1: PoF '39 | Z1: PoF '40 | AA1: Safety CoF ($) | AB1: Environment CoF ($) | AC1: Total Risk '26 ($) | AD1: Total Risk '27 ($) | AE1: Total Risk '28 ($) | AF1: Total Risk '29 ($) | AG1: Total Risk '30 ($) | AH1: Total Risk '31 ($) | AI1: Total Risk '32 ($) | AJ1: Likelihood
A2: RCTS | B2: TS-RCTS-TRNFMR-9000121025 | C2: L1A 220/66/22KV TR | D2: 30216946 | E2: 16/11/1962 | F2: 62 | G2: PT | H2: 220 | I2: BRUCE PEEBLES | J2: SERV | K2: 0.06460558446 | L2: 0.0657635568 | M2: 0.0669292564 | N2: 0.06810262809 | O2: 0.0692836169 | P2: 0.07047216808 | Q2: 0.07166822709 | R2: 0.07287173956 | S2: 0.07408265137 | T2: 0.07530090854 | U2: 0.07652645732 | V2: 0.07775924412 | W2: 0.07899921554 | X2: 0.08024631837 | Y2: 0.08150049956 | Z2: 0.08276170623 | AA2: 109557.3 | AB2: 500 | AC2: 70343.98749 | AD2: 74152.93373 | AE2: 78136.8894 | AF2: 82302.33735 | AG2: 86655.94725 | AH2: 91204.57881 | AI2: 95955.28663 | AJ2: 4
A3: RCTS | B3: TS-RCTS-TRNFMR-9000118320 | C3: L2A 220/66/22KV TR | D3: 30221515 | E3: 20/12/1962 | F3: 62 | G3: PT | H3: 220 | I3: BRUCE PEEBLES | J3: SERV | K3: 0.05747171465 | L3: 0.05857957578 | M3: 0.05969551815 | N3: 0.06081948508 | O3: 0.06195142016 | P3: 0.0630912672 | Q3: 0.06423897029 | R3: 0.0653944737 | S3: 0.06655772198 | T3: 0.06772865987 | U3: 0.06890723234 | V3: 0.07009338456 | W3: 0.07128706193 | X3: 0.07248821004 | Y3: 0.07369677467 | Z3: 0.07491270181 | AA3: 109557.3 | AB3: 500 | AC3: 63995.41408 | AD3: 67528.40647 | AE3: 71226.60472 | AF3: 75096.24457 | AG3: 79143.74391 | AH3: 83375.70699 | AI3: 87798.92859 | AJ3: 4
A4: KGTS | B4: TS-KGTS-TRNFMR-9000103626 | C4: B2 TR | D4: 30264148 | E4: 15/09/1962 | F4: 63 | G4: PT | H4: 220 | I4: BRUCE PEEBLES | J4: SERV | K4: 0.05516524267 | L4: 0.05625589816 | M4: 0.0573547551 | N4: 0.05846175626 | O4: 0.05957684469 | P4: 0.06069996368 | Q4: 0.06183105678 | R4: 0.0629700678 | S4: 0.06411694077 | T4: 0.06527161997 | U4: 0.0664340499 | V4: 0.06760417528 | W4: 0.06878194107 | X4: 0.06996729241 | Y4: 0.07116017468 | Z4: 0.07236053345 | AA4: 109557.3 | AB4: 500 | AC4: 137354.5327 | AD4: 144112.3048 | AE4: 151147.9758 | AF4: 158470.321 | AG4: 166088.2955 | AH4: 174011.0345 | AI4: 182247.856 | AJ4: 4
A5: KGTS | B5: TS-KGTS-TRNFMR-9000101035 | C5: B3 TR | D5: 30287689 | E5: 5/09/1962 | F5: 63 | G5: PT | H5: 220 | I5: BRUCE PEEBLES | J5: SERV | K5: 0.05440453226 | L5: 0.05548939598 | M5: 0.0565825015 | N5: 0.05768379138 | O5: 0.05879320849 | P5: 0.05991069594 | Q5: 0.0610361971 | R5: 0.06216965561 | S5: 0.06331101532 | T5: 0.06446022036 | U5: 0.06561721507 | V5: 0.06678194401 | W5: 0.06795435198 | X5: 0.06913438398 | Y5: 0.07032198524 | Z5: 0.07151710119 | AA5: 109557.3 | AB5: 500 | AC5: 136191.2098 | AD5: 142912.4167 | AE5: 149910.4263 | AF5: 157193.9898 | AG5: 164772.0372 | AH5: 172653.6796 | AI5: 180848.2099 | AJ5: 4
A6: SHTS | B6: TS-SHTS-TRNFMR-9000100271 | C6: B3 TR | D6: 30319072 | E6: 5/10/1971 | F6: 54 | G6: PT | H6: 220 | I6: TOSHIBA | J6: SERV | K6: 0.05440453226 | L6: 0.05548939598 | M6: 0.0565825015 | N6: 0.05768379138 | O6: 0.05879320849 | P6: 0.05991069594 | Q6: 0.0610361971 | R6: 0.06216965561 | S6: 0.06331101532 | T6: 0.06446022036 | U6: 0.06561721507 | V6: 0.06678194401 | W6: 0.06795435198 | X6: 0.06913438398 | Y6: 0.07032198524 | Z6: 0.07151710119 | AA6: 109557.3 | AB6: 500 | AC6: 65084.83945 | AD6: 68960.41269 | AE6: 73027.35101 | AF6: 77292.99532 | AG6: 81764.89171 | AH6: 86450.79663 | AI6: 91358.68015 | AJ6: 4
A7: BATS | B7: TS-BATS-TRNFMR-9000103776 | C7: B2 TR | D7: 30024480 | E7: 29/05/1969 | F7: 56 | G7: PT | H7: 220 | I7: TOSHIBA | J7: SERV | K7: 0.05364791187 | L7: 0.0547269554 | M7: 0.05581428119 | N7: 0.05690983163 | O7: 0.05801354939 | P7: 0.05912537739 | Q7: 0.06024525884 | R7: 0.06137313717 | S7: 0.06250895609 | T7: 0.06365265954 | U7: 0.0648041917 | V7: 0.06596349699 | W7: 0.06713052004 | X7: 0.06830520571 | Y7: 0.06948749907 | Z7: 0.0706773454 | AA7: 109557.3 | AB7: 500 | AC7: 617622.4635 | AD7: 647295.4852 | AE7: 678267.1992 | AF7: 710583.8378 | AG7: 744292.6658 | AH7: 779441.9861 | AI7: 816081.1453 | AJ7: 4
A8: RCTS | B8: TS-RCTS-TRNFMR-9000118319 | C8: B2B TR | D8: 30009162 | E8: 5/11/1974 | F8: 50 | G8: PT | H8: 220 | I8: HAWKER SIDDLEY BRUSH | J8: SERV | K8: 0.04631110626 | L8: 0.04733036092 | M8: 0.04835831088 | N8: 0.04939489632 | O8: 0.05044005776 | P8: 0.05149373608 | Q8: 0.05255587244 | R8: 0.05362640833 | S8: 0.05470528556 | T8: 0.05579244622 | U8: 0.05688783268 | V8: 0.05799138759 | W8: 0.05910305389 | X8: 0.06022277476 | Y8: 0.06135049365 | Z8: 0.06248615425 | AA8: 109557.3 | AB8: 500 | AC8: 52495.02148 | AD8: 55536.76654 | AE8: 58726.62433 | AF8: 62070.39954 | AG8: 65574.07199 | AH8: 69243.80023 | AI8: 73085.92652 | AJ8: 3
A9: SHTS | B9: TS-SHTS-TRNFMR-9000101629 | C9: B2 TR | D9: 30098829 | E9: 10/07/1969 | F9: 56 | G9: PT | H9: 220 | I9: TOSHIBA | J9: SERV | K9: 0.04631110626 | L9: 0.04733036092 | M9: 0.04835831088 | N9: 0.04939489632 | O9: 0.05044005776 | P9: 0.05149373608 | Q9: 0.05255587244 | R9: 0.05362640833 | S9: 0.05470528556 | T9: 0.05579244622 | U9: 0.05688783268 | V9: 0.05799138759 | W9: 0.05910305389 | X9: 0.06022277476 | Y9: 0.06135049365 | Z9: 0.06248615425 | AA9: 109557.3 | AB9: 500 | AC9: 61102.4521 | AD9: 64783.457 | AE9: 68647.98965 | AF9: 72703.20022 | AG9: 76956.44348 | AH9: 81415.28253 | AI9: 86087.49411 | AJ9: 3
A10: RCTS | B10: TS-RCTS-TRNFMR-9000121024 | C10: B1B TR | D10: 30115227 | E10: 1/06/1987 | F10: 38 | G10: PT | H10: 220 | I10: WILSON | J10: SERV | K10: 0.04560081573 | L10: 0.04661393036 | M10: 0.04763578249 | N10: 0.04866631206 | O10: 0.04970545935 | P10: 0.05075316498 | Q10: 0.05180936993 | R10: 0.05287401545 | S10: 0.05394704313 | T10: 0.05502839486 | U10: 0.05611801281 | V10: 0.05721583945 | W10: 0.05832181751 | X10: 0.05943589 | Y10: 0.06055800017 | Z10: 0.06168809157 | AA10: 109557.3 | AB10: 500 | AC10: 51707.00459 | AD10: 54714.93379 | AE10: 57869.8037 | AF10: 61177.38915 | AG10: 64643.63988 | AH10: 68274.68405 | AI10: 72076.83258 | AJ10: 3
A11: GNTS | B11: TS-GNTS-TRNFMR-9000101867 | C11: B2 TR | D11: 30000089 | E11: 12/05/1981 | F11: 44 | G11: PT | H11: 220 | I11: FUJI | J11: SERV | K11: 0.03873987054 | L11: 0.03968992477 | M11: 0.04064914906 | N11: 0.04161748054 | O11: 0.04259485676 | P11: 0.04358121573 | Q11: 0.04457649584 | R11: 0.0455806359 | S11: 0.0465935751 | T11: 0.04761525301 | U11: 0.04864560955 | V11: 0.04968458501 | W11: 0.05073212 | X11: 0.05178815547 | Y11: 0.0528526327 | Z11: 0.05392549325 | AA11: 109557.3 | AB11: 500 | AC11: 3477926.484 | AD11: 3599298.814 | AE11: 3723414.265 | AF11: 3850313.921 | AG11: 3980039.653 | AH11: 4112634.126 | AI11: 4248140.809 | AJ11: 3
A12: TGTS | B12: TS-TGTS-TRNFMR-9000105719 | C12: B2 TR | D12: 30215049 | E12: 26/04/1978 | F12: 47 | G12: PT | H12: 220 | I12: FUJI | J12: SERV | K12: 0.03742158996 | L12: 0.0383586624 | M12: 0.03930499396 | N12: 0.04026052113 | O12: 0.04122518084 | P12: 0.04219891046 | Q12: 0.04318164782 | R12: 0.04417333117 | S12: 0.04517389914 | T12: 0.04618329077 | U12: 0.04720144548 | V12: 0.04822830305 | W12: 0.04926380362 | X12: 0.05030788768 | Y12: 0.05136049604 | Z12: 0.05242156983 | AA12: 109557.3 | AB12: 500 | AC12: 724382.4983 | AD12: 755702.4597 | AE12: 788154.201 | AF12: 821774.6854 | AG12: 856601.8223 | AH12: 892674.4753 | AI12: 930032.4699 | AJ12: 3
A13: BETS | B13: TS-BETS-TRNFMR-9000100900 | C13: B4 TR | D13: 30303085 | E13: 23/04/1981 | F13: 44 | G13: PT | H13: 220 | I13: FUJI | J13: SERV | K13: 0.03233404704 | L13: 0.03321791603 | M13: 0.03411141048 | N13: 0.03501446388 | O13: 0.03592701032 | P13: 0.03684898442 | Q13: 0.03778032135 | R13: 0.03872095679 | S13: 0.03967082691 | T13: 0.04062986835 | U13: 0.04159801823 | V13: 0.04257521411 | W13: 0.04356139396 | X13: 0.04455649619 | Y13: 0.04556045958 | Z13: 0.04657322333 | AA13: 109557.3 | AB13: 500 | AC13: 197649.9387 | AD13: 210696.502 | AE13: 224498.3389 | AF13: 239090.0316 | AG13: 254507.1606 | AH13: 270786.3144 | AI13: 287965.0974 | AJ13: 3
A14: MWTS | B14: TS-MWTS-TRNFMR-9000104229 | C14: B3 TR | D14: 30114668 | E14: 9/06/1983 | F14: 42 | G14: PT | H14: 220 | I14: FUJI | J14: SERV | K14: 0.03050439947 | L14: 0.03136777702 | M14: 0.03224092206 | N14: 0.03312376681 | O14: 0.0340162441 | P14: 0.03491828737 | Q14: 0.03582983063 | R14: 0.03675080846 | S14: 0.03768115597 | T14: 0.03862080878 | U14: 0.03956970301 | V14: 0.04052777526 | W14: 0.0414949626 | X14: 0.04247120252 | Y14: 0.04345643298 | Z14: 0.04445059232 | AA14: 109557.3 | AB14: 500 | AC14: 472658.2575 | AD14: 497814.1668 | AE14: 524108.8145 | AF14: 551586.5676 | AG14: 580293.0489 | AH14: 610275.1499 | AI14: 641581.0424 | AJ14: 2
A15: KGTS | B15: TS-KGTS-TRNFMR-9000103625 | C15: B1 TR | D15: 30139189 | E15: 3/09/2004 | F15: 21 | G15: PT | H15: 220 | I15: ABB | J15: SERV | K15: 0.02755225288 | L15: 0.02838080017 | M15: 0.02921935825 | N15: 0.03006785692 | O15: 0.0309262267 | P15: 0.0317943988 | Q15: 0.0326723051 | R15: 0.03355987811 | S15: 0.03445705097 | T15: 0.03536375742 | U15: 0.03627993173 | V15: 0.03720550874 | W15: 0.03814042382 | X15: 0.03908461285 | Y15: 0.04003801217 | Z15: 0.04100055862 | AA15: 109557.3 | AB15: 500 | AC15: 65487.0889 | AD15: 69689.29483 | AE15: 74100.342 | AF15: 78727.78942 | AG15: 83579.37064 | AH15: 88662.99593 | AI15: 93986.75385 | AJ15: 2
A16: MBTS | B16: TS-MBTS-TRNFMR-9000104603 | C16: B2 TR | D16: 30320144 | E16: 31/12/2005 | F16: 19 | G16: PT | H16: 220 | I16: AREVA | J16: SERV | K16: 0.02640600168 | L16: 0.02722037387 | M16: 0.0280448567 | N16: 0.0288793789 | O16: 0.02972386997 | P16: 0.03057826012 | Q16: 0.03144248031 | R16: 0.03231646213 | S16: 0.03320013786 | T16: 0.03409344039 | U16: 0.03499630319 | V16: 0.03590866035 | W16: 0.03683044647 | X16: 0.03776159671 | Y16: 0.03870204674 | Z16: 0.03965173272 | AA16: 109557.3 | AB16: 500 | AC16: 22913.3626 | AD16: 24874.52574 | AE16: 26970.89644 | AF16: 29209.22145 | AG16: 31596.44876 | AH16: 34139.72844 | AI16: 36846.41517 | AJ16: 2
A17: SHTS | B17: TS-SHTS-TRNFMR-9000102874 | C17: B4 TR | D17: 30122588 | E17: 1/06/2001 | F17: 24 | G17: PT | H17: 220 | I17: WILSON | J17: SERV | K17: 0.02308849607 | L17: 0.02385948081 | M17: 0.02464088569 | N17: 0.02543263579 | O17: 0.02623465713 | P17: 0.02704687658 | Q17: 0.02786922189 | R17: 0.02870162162 | S17: 0.0295440051 | T17: 0.0303963024 | U17: 0.03125844431 | V17: 0.03213036231 | W17: 0.03301198851 | X17: 0.03390325569 | Y17: 0.0348040972 | Z17: 0.035714447 | AA17: 109557.3 | AB17: 500 | AC17: 34375.76366 | AD17: 36893.10738 | AE17: 39556.75468 | AF17: 42373.148 | AG17: 45348.93192 | AH17: 48490.95732 | AI17: 51806.28597 | AJ17: 2
A18: BATS | B18: TS-BATS-TRNFMR-9000104470 | C18: B1 TR | D18: 30131526 | E18: 22/07/2015 | F18: 10 | G18: PT | H18: 220 | I18: WILSON | J18: SERV | K18: 0.01516846964 | L18: 0.01581693059 | M18: 0.0164767334 | N18: 0.01714778877 | O18: 0.01783000907 | P18: 0.01852330822 | Q18: 0.01922760164 | R18: 0.01994280613 | S18: 0.02066883984 | T18: 0.02140562217 | U18: 0.02215307373 | V18: 0.02291111625 | AA18: 109557.3 | AB18: 500 | AC18: 358340.5508 | AD18: 383072.3023 | AE18: 409084.3376 | AF18: 436423.2291 | AG18: 465136.5757 | AH18: 495273.0094 | AI18: 526882.2 | AJ18: 2
A19: MWTS | B19: TS-MWTS-TRNFMR-9000100442 | C19: B1 TR | D19: 30162364 | E19: 16/04/2010 | F19: 15 | G19: PT | H19: 220 | I19: WILSON | J19: SERV | K19: 0.02255353007 | L19: 0.02331715457 | M19: 0.0240912524 | N19: 0.02487574794 | O19: 0.02567056657 | P19: 0.02647563454 | Q19: 0.02729087901 | R19: 0.02811622797 | S19: 0.02895161021 | T19: 0.02979695528 | U19: 0.03065219347 | V19: 0.03151725579 | W19: 0.03239207389 | X19: 0.03327658011 | Y19: 0.03417070738 | Z19: 0.03507438923 | AA19: 109557.3 | AB19: 500 | AC19: 349284.4979 | AD19: 370720.3827 | AE19: 393207.8228 | AF19: 416788.6529 | AG19: 441505.9278 | AH19: 467403.9369 | AI19: 494528.2162 | AJ19: 2
A20: RCTS | B20: TS-RCTS-TRNFMR-9000101142 | C20: B3 TR | D20: 30188337 | E20: 30/06/2006 | F20: 19 | G20: PT | H20: 220 | I20: WILSON | J20: SERV | K20: 0.02149922201 | L20: 0.02224801241 | M20: 0.023007384 | N20: 0.02377725975 | O20: 0.02455756364 | P20: 0.02534822065 | Q20: 0.02614915669 | R20: 0.02696029856 | S20: 0.02778157391 | T20: 0.02861291121 | U20: 0.02945423971 | V20: 0.03030548942 | W20: 0.03116659104 | X20: 0.03203747598 | Y20: 0.03291807629 | Z20: 0.03380832468 | AA20: 109557.3 | AB20: 500 | AC20: 22643.48918 | AD20: 24313.17127 | AE20: 26081.63858 | AF20: 27953.42168 | AG20: 29933.20451 | AH20: 32025.82901 | AI20: 34236.29787 | AJ20: 1
A21: HOTS | B21: TS-HOTS-TRNFMR-9000103910 | C21: B2 TR | D21: 30403050 | E21: 5/07/2007 | F21: 18 | G21: PT | H21: 220 | I21: AREVA | J21: SERV | K21: 0.02046592596 | L21: 0.02119972828 | M21: 0.02194422177 | N21: 0.02269932788 | O21: 0.02346496914 | P21: 0.02424106913 | Q21: 0.02502755244 | R21: 0.0258243446 | S21: 0.02663137206 | T21: 0.02744856212 | U21: 0.02827584294 | V21: 0.02911314346 | W21: 0.02996039336 | X21: 0.03081752309 | Y21: 0.03168446377 | Z21: 0.0325611472 | AA21: 109557.3 | AB21: 500 | AC21: 47886.51265 | AD21: 52638.88178 | AE21: 57758.3779 | AF21: 63265.1713 | AG21: 69180.09188 | AH21: 75524.63581 | AI21: 82320.97167 | AJ21: 1
A22: MBTS | B22: TS-MBTS-TRNFMR-9000102766 | C22: B1 TR (HOT SPARE) | D22: 30197453 | E22: 31/12/2005 | F22: 19 | G22: PT | H22: 220 | I22: AREVA | J22: SERV | K22: 0.01846325464 | L22: 0.01916660589 | M22: 0.01988087532 | N22: 0.02060598095 | O22: 0.02134184209 | P22: 0.02208837924 | Q22: 0.02284551404 | R22: 0.02361316924 | S22: 0.02439126862 | T22: 0.02517973695 | U22: 0.02597849993 | V22: 0.02678748419 | W22: 0.02760661721 | X22: 0.02843582727 | Y22: 0.02927504347 | Z22: 0.03012419565 | AA22: 109557.3 | AB22: 500 | AC22: 22026.9866 | AD22: 23976.01994 | AE22: 26060.34854 | AF22: 28286.71815 | AG22: 30662.07546 | AH22: 33193.56964 | AI22: 35888.55437 | AJ22: 1
A23: WETS | B23: TS-WETS-TRNFMR-9000105463 | C23: B1 TR | D23: 30093526 | E23: 30/09/2011 | F23: 14 | G23: PT | H23: 220 | I23: WILSON | J23: SERV | K23: 0.01846325464 | L23: 0.01916660589 | M23: 0.01988087532 | N23: 0.02060598095 | O23: 0.02134184209 | P23: 0.02208837924 | Q23: 0.02284551404 | R23: 0.02361316924 | S23: 0.02439126862 | T23: 0.02517973695 | U23: 0.02597849993 | V23: 0.02678748419 | W23: 0.02760661721 | X23: 0.02843582727 | Y23: 0.02927504347 | Z23: 0.03012419565 | AA23: 109557.3 | AB23: 500 | AC23: 2260665.266 | AD23: 2376096.046 | AE23: 2494847.889 | AF23: 2616948.543 | AG23: 2742425.743 | AH23: 2871307.222 | AI23: 3003620.726 | AJ23: 1
A24: BETS | B24: TS-BETS-TRNFMR-9000101413 | C24: L4 TR | D24: 30437067 | E24: 31/10/2013 | F24: 11 | G24: PT | H24: 220 | I24: WILSON | J24: SERV | K24: 0.01846325464 | L24: 0.01916660589 | M24: 0.01988087532 | N24: 0.02060598095 | O24: 0.02134184209 | P24: 0.02208837924 | Q24: 0.02284551404 | R24: 0.02361316924 | S24: 0.02439126862 | T24: 0.02517973695 | U24: 0.02597849993 | V24: 0.02678748419 | W24: 0.02760661721 | X24: 0.02843582727 | Y24: 0.02927504347 | Z24: 0.03012419565 | AA24: 109557.3 | AB24: 500 | AC24: 22991.82167 | AD24: 25354.22938 | AE24: 27908.47583 | AF24: 30665.74223 | AG24: 33637.59958 | AH24: 36836.01279 | AI24: 40273.34519 | AJ24: 1
A25: GNTS | B25: TS-GNTS-TRNFMR-9000104776 | C25: B3 TR | D25: 30268304 | E25: 26/03/2014 | F25: 11 | G25: PT | H25: 220 | I25: WILSON | J25: SERV | K25: 0.01749433391 | L25: 0.01818221512 | M25: 0.01888113187 | N25: 0.01959100028 | O25: 0.02031173786 | P25: 0.0210432634 | Q25: 0.02178549692 | R25: 0.02253835961 | S25: 0.02330177379 | T25: 0.02407566282 | U25: 0.02485995108 | V25: 0.02565456389 | W25: 0.02645942752 | X25: 0.0272744691 | Y25: 0.0280996166 | Z25: 0.02893479879 | AA25: 109557.3 | AB25: 500 | AC25: 1305021.635 | AD25: 1377814.345 | AE25: 1453126.628 | AF25: 1531003.632 | AG25: 1611491.205 | AH25: 1694635.913 | AI25: 1780485.048 | AJ25: 1
A26: HOTS | B26: TS-HOTS-TRNFMR-9000101170 | C26: B3 TR | D26: 30120436 | E26: 30/11/2006 | F26: 18 | G26: PT | H26: 220 | I26: AREVA | J26: SERV | K26: 0.01749433391 | L26: 0.01818221512 | M26: 0.01888113187 | N26: 0.01959100028 | O26: 0.02031173786 | P26: 0.0210432634 | Q26: 0.02178549692 | R26: 0.02253835961 | S26: 0.02330177379 | T26: 0.02407566282 | U26: 0.02485995108 | V26: 0.02565456389 | W26: 0.02645942752 | X26: 0.0272744691 | Y26: 0.0280996166 | Z26: 0.02893479879 | AA26: 109557.3 | AB26: 500 | AC26: 47554.41325 | AD26: 52301.76638 | AE26: 57416.2837 | AF26: 62918.1352 | AG26: 68828.14998 | AH26: 75167.82381 | AI26: 81959.32497 | AJ26: 1
A27: TGTS | B27: TS-TGTS-TRNFMR-9000101176 | C27: B1 TR | D27: 30321868 | E27: 4/05/2007 | F27: 18 | G27: PT | H27: 220 | I27: ABB | J27: SERV | K27: 0.01654733504 | L27: 0.01721957805 | M27: 0.01790297678 | N27: 0.01859744534 | O27: 0.01930289927 | P27: 0.02001925553 | Q27: 0.02074643242 | R27: 0.02148434945 | S27: 0.02223292736 | T27: 0.02299208801 | U27: 0.02376175435 | V27: 0.02454185034 | W27: 0.02533230095 | X27: 0.02613303205 | Y27: 0.02694397044 | Z27: 0.02776504376 | AA27: 109557.3 | AB27: 500 | AC27: 330891.2469 | AD27: 353211.7308 | AE27: 376621.5028 | AF27: 401158.3033 | AG27: 426860.8022 | AH27: 453768.6073 | AI27: 481922.2733 | AJ27: 1
A28: BETS | B28: TS-BETS-TRNFMR-9000101412 | C28: L2 TR | D28: 30149749 | E28: 31/10/2013 | F28: 11 | G28: PT | H28: 220 | I28: WILSON | J28: SERV | K28: 0.01562249926 | L28: 0.01627893162 | M28: 0.01694664298 | N28: 0.01762554521 | O28: 0.01831555179 | P28: 0.01901657768 | Q28: 0.0197285393 | R28: 0.0204513544 | S28: 0.02118494201 | T28: 0.02192922237 | U28: 0.02268411692 | V28: 0.02344954816 | W28: 0.02422543964 | X28: 0.02501171594 | Y28: 0.02580830258 | Z28: 0.02661512597 | AA28: 109557.3 | AB28: 500 | AC28: 22674.01207 | AD28: 25031.29568 | AE28: 27580.45713 | AF28: 30332.67693 | AG28: 33299.52538 | AH28: 36492.96699 | AI28: 39925.36439 | AJ28: 1
A29: BETS | B29: TS-BETS-TRNFMR-9000106322 | C29: B3 TR | D29: 30046037 | E29: 30/11/2013 | F29: 11 | G29: PT | H29: 220 | I29: WILSON | J29: SERV | K29: 0.01516846964 | L29: 0.01581693059 | M29: 0.0164767334 | N29: 0.01714778877 | O29: 0.01783000907 | P29: 0.01852330822 | Q29: 0.01922760164 | R29: 0.01994280613 | S29: 0.02066883984 | T29: 0.02140562217 | U29: 0.02215307373 | V29: 0.02291111625 | W29: 0.02367967259 | X29: 0.02445866659 | Y29: 0.02524802311 | Z29: 0.02604766795 | AA29: 109557.3 | AB29: 500 | AC29: 136118.8397 | AD29: 147668.5864 | AE29: 159966.1552 | AF29: 173046.2668 | AG29: 186944.6375 | AH29: 201697.9884 | AI29: 217344.0534 | AJ29: 1
A30: MWTS | B30: TS-MWTS-TRNFMR-9000101711 | C30: B2 TR | D30: 32495378 | E30: 30/11/2015 | F30: 9 | G30: PT | H30: 220 | I30: TOSHIBA | J30: SERV | K30: 0.01174181586 | L30: 0.01232483305 | M30: 0.01291972946 | N30: 0.01352640441 | O30: 0.01414475956 | P30: 0.01477469873 | Q30: 0.01541612783 | R30: 0.01606895465 | S30: 0.01673308885 | T30: 0.01740844177 | U30: 0.01809492639 | V30: 0.0187924572 | W30: 0.01950095018 | X30: 0.02022032264 | Y30: 0.02095049322 | Z30: 0.0216913818 | AA30: 109557.3 | AB30: 500 | AC30: 164416.5777 | AD30: 178212.1284 | AE30: 192852.6074 | AF30: 208375.2183 | AG30: 224818.327 | AH30: 242221.4787 | AI30: 260625.4122 | AJ30: 1
A31: WETS | B31: TS-WETS-TRNFMR-8000030801 | C31: B2 TR | D31: 33097043 | E31: 31/10/2018 | F31: 6 | G31: PT | H31: 220 | I31: WILSON | J31: SERV | K31: 0.01133968946 | L31: 0.01191430596 | M31: 0.01250087383 | N31: 0.01309929066 | O31: 0.01370945648 | P31: 0.01433127362 | Q31: 0.01496464654 | R31: 0.01560948171 | S31: 0.0162656875 | T31: 0.01693317406 | U31: 0.01761185325 | V31: 0.0183016385 | W31: 0.01900244476 | X31: 0.0197141884 | Y31: 0.02043678715 | Z31: 0.02117016001 | AA31: 109557.3 | AB31: 500 | AC31: 1198985.227 | AD31: 1280292.132 | AE31: 1364682.691 | AF31: 1452189.495 | AG31: 1542844.956 | AH31: 1636681.335 | AI31: 1733730.764 | AJ31: 1
